[Event "Titled Tuesday Blitz March 07 Early 2023"]
[White "Slade, Theodore"]
[Black "Kucuksari, Kaan"]
[WhiteFideId "426547"]
[BlackFideId "6380166"]
[WhiteElo "1964"]
[BlackElo "2364"]
[Result "1/2-1/2"]
[Round "02"]
[TimeControl "180+2"]
[Date "2023.03.07"]
[WhiteClock "0:00:15"]
[BlackClock "0:00:09"]

1. d4 {[%clk 0:03:00]}  f5 {[%clk 0:02:56]} 2. g3 {[%clk 0:03:00]}  Nf6 {[%clk 0:02:56]} 3. Bg2 {[%clk 0:03:01]}  e6 {[%clk 0:02:57]} 4. Nf3 {[%clk 0:03:02]}  Be7 {[%clk 0:02:57]} 5. O-O {[%clk 0:03:02]}  O-O {[%clk 0:02:58]} 6. c4 {[%clk 0:03:03]}  d6 {[%clk 0:02:58]} 7. Nc3 {[%clk 0:02:59]}  Ne4 {[%clk 0:02:56]} 8. Nxe4 {[%clk 0:02:55]}  fxe4 {[%clk 0:02:56]} 9. Nd2 {[%clk 0:02:56]}  d5 {[%clk 0:02:55]} 10. f3 {[%clk 0:02:48]}  exf3 {[%clk 0:02:55]} 11. Nxf3 {[%clk 0:02:46]}  Nc6 {[%clk 0:02:51]} 12. Bf4 {[%clk 0:02:37]}  Bf6 {[%clk 0:02:38]} 13. c5 {[%clk 0:02:25]}  Nxd4 {[%clk 0:02:20]} 14. Nxd4 {[%clk 0:02:23]}  e5 {[%clk 0:02:21]} 15. Be3 {[%clk 0:02:21]}  exd4 {[%clk 0:02:19]} 16. Bxd4 {[%clk 0:02:21]}  c6 {[%clk 0:02:15]} 17. e4 {[%clk 0:02:06]}  Be6 {[%clk 0:01:36]} 18. exd5 {[%clk 0:01:57]}  Bxd5 {[%clk 0:01:27]} 19. Bxf6 {[%clk 0:01:53]}  Bxg2 {[%clk 0:00:51]} 20. Kxg2 {[%clk 0:01:12]}  Rxf6 {[%clk 0:00:43]} 21. Qb3+ {[%clk 0:00:52]}  Kh8 {[%clk 0:00:21]} 22. Rxf6 {[%clk 0:00:52]}  Qxf6 {[%clk 0:00:22]} 23. Rf1 {[%clk 0:00:51]}  Qe7 {[%clk 0:00:18]} 24. Qf7 {[%clk 0:00:39]}  Qxc5 {[%clk 0:00:15]} 25. Qxb7 {[%clk 0:00:37]}  Re8 {[%clk 0:00:13]} 26. Qf7 {[%clk 0:00:34]}  Rb8 {[%clk 0:00:10]} 27. b3 {[%clk 0:00:32]}  h6 {[%clk 0:00:09]} 28. Rf2 {[%clk 0:00:31]}  Rd8 {[%clk 0:00:08]} 29. Qf3 {[%clk 0:00:20]}  a5 {[%clk 0:00:08]} 30. Qe4 {[%clk 0:00:18]}  Qc3 {[%clk 0:00:06]} 31. Qe7 {[%clk 0:00:16]}  Qd4 {[%clk 0:00:04]} 32. Rf8+ {[%clk 0:00:15]}  Rxf8 {[%clk 0:00:04]} 33. Qxf8+ {[%clk 0:00:16]}  Kh7 {[%clk 0:00:05]} 34. Qf5+ {[%clk 0:00:17]}  Kh8 {[%clk 0:00:05]} 35. Qc8+ {[%clk 0:00:16]}  Kh7 {[%clk 0:00:06]} 36. Qxc6 {[%clk 0:00:14]}  Qb2+ {[%clk 0:00:06]} 37. Kh3 {[%clk 0:00:13]}  Qxa2 {[%clk 0:00:07]} 38. Qe4+ {[%clk 0:00:13]}  Kh8 {[%clk 0:00:08]} 39. Qe8+ {[%clk 0:00:13]}  Kh7 {[%clk 0:00:08]} 40. Qe4+ {[%clk 0:00:14]}  Kh8 {[%clk 0:00:08]} 41. Qe8+ {[%clk 0:00:14]}  Kh7 {[%clk 0:00:09]} 42. Qe4+ {[%clk 0:00:15]} 1/2-1/2


[Site "https://www.chess.com"]

[Event "Titled Tuesday Blitz March 07 Early 2023"]
[White "Aldokhin, Ivan"]
[Black "Garic, Radomir"]
[WhiteFideId "24115720"]
[BlackFideId "920959"]
[WhiteElo "2322"]
[BlackElo "2204"]
[Result "1-0"]
[Round "02"]
[TimeControl "180+2"]
[Date "2023.03.07"]
[WhiteClock "0:00:04"]
[BlackClock "0:00:05"]

1. e4 {[%clk 0:02:55]}  Nc6 {[%clk 0:02:59]} 2. Nf3 {[%clk 0:02:55]}  d6 {[%clk 0:02:59]} 3. Nc3 {[%clk 0:02:54]}  Nf6 {[%clk 0:02:59]} 4. d4 {[%clk 0:02:54]}  g6 {[%clk 0:03:00]} 5. h3 {[%clk 0:02:53]}  Bg7 {[%clk 0:03:00]} 6. Bg5 {[%clk 0:02:53]}  h6 {[%clk 0:02:59]} 7. Be3 {[%clk 0:02:52]}  O-O {[%clk 0:02:58]} 8. Qd2 {[%clk 0:02:52]}  Kh7 {[%clk 0:02:57]} 9. d5 {[%clk 0:02:36]}  Ne5 {[%clk 0:02:48]} 10. Nxe5 {[%clk 0:02:32]}  dxe5 {[%clk 0:02:49]} 11. O-O-O {[%clk 0:02:32]}  a6 {[%clk 0:02:45]} 12. g4 {[%clk 0:02:25]}  b5 {[%clk 0:02:36]} 13. f3 {[%clk 0:02:20]}  Bd7 {[%clk 0:02:33]} 14. h4 {[%clk 0:02:15]}  Ng8 {[%clk 0:02:27]} 15. g5 {[%clk 0:02:11]}  h5 {[%clk 0:02:24]} 16. Bg2 {[%clk 0:01:59]}  Qb8 {[%clk 0:02:21]} 17. Kb1 {[%clk 0:01:58]}  b4 {[%clk 0:02:18]} 18. Ne2 {[%clk 0:01:58]}  a5 {[%clk 0:02:18]} 19. Nc1 {[%clk 0:01:53]}  Rd8 {[%clk 0:02:08]} 20. Nd3 {[%clk 0:01:49]}  e6 {[%clk 0:02:01]} 21. Nc5 {[%clk 0:01:43]}  exd5 {[%clk 0:02:01]} 22. Qxd5 {[%clk 0:01:36]}  Be8 {[%clk 0:01:47]} 23. Qc4 {[%clk 0:01:36]}  Ne7 {[%clk 0:01:38]} 24. Bh3 {[%clk 0:01:34]}  Nc6 {[%clk 0:01:34]} 25. Nd7 {[%clk 0:01:28]}  Qb7 {[%clk 0:01:22]} 26. Nf6+ {[%clk 0:01:21]}  Bxf6 {[%clk 0:01:18]} 27. gxf6 {[%clk 0:01:22]}  Nd4 {[%clk 0:01:17]} 28. Bxd4 {[%clk 0:01:17]}  exd4 {[%clk 0:01:15]} 29. Rxd4 {[%clk 0:01:16]}  Qb5 {[%clk 0:01:01]} 30. Qxb5 {[%clk 0:01:06]}  Bxb5 {[%clk 0:01:02]} 31. Rhd1 {[%clk 0:01:04]}  Re8 {[%clk 0:00:50]} 32. R1d2 {[%clk 0:00:58]}  Ra6 {[%clk 0:00:48]} 33. Rd5 {[%clk 0:00:56]}  Bc4 {[%clk 0:00:44]} 34. Rc5 {[%clk 0:00:55]}  Be6 {[%clk 0:00:39]} 35. Bf1 {[%clk 0:00:52]}  Ra7 {[%clk 0:00:37]} 36. Bd3 {[%clk 0:00:43]}  Bc8 {[%clk 0:00:33]} 37. f4 {[%clk 0:00:41]}  Be6 {[%clk 0:00:25]} 38. Rg5 {[%clk 0:00:35]}  Kh6 {[%clk 0:00:21]} 39. e5 {[%clk 0:00:27]}  Rd8 {[%clk 0:00:20]} 40. Rdg2 {[%clk 0:00:26]}  Rxd3 {[%clk 0:00:11]} 41. cxd3 {[%clk 0:00:26]}  c5 {[%clk 0:00:12]} 42. Rc2 {[%clk 0:00:18]}  Rd7 {[%clk 0:00:12]} 43. Rg3 {[%clk 0:00:12]}  Bf5 {[%clk 0:00:10]} 44. Rxc5 {[%clk 0:00:12]}  Bxd3+ {[%clk 0:00:10]} 45. Kc1 {[%clk 0:00:13]}  a4 {[%clk 0:00:07]} 46. a3 {[%clk 0:00:11]}  bxa3 {[%clk 0:00:06]} 47. bxa3 {[%clk 0:00:10]}  Bf5 {[%clk 0:00:07]} 48. Ra5 {[%clk 0:00:10]}  Rc7+ {[%clk 0:00:07]} 49. Kd2 {[%clk 0:00:10]}  Rd7+ {[%clk 0:00:05]} 50. Ke1 {[%clk 0:00:10]}  Rc7 {[%clk 0:00:05]} 51. Rxa4 {[%clk 0:00:10]}  Rc2 {[%clk 0:00:05]} 52. Ra8 {[%clk 0:00:10]}  Be6 {[%clk 0:00:05]} 53. Rh8# {[%clk 0:00:04]} 1-0


[Site "https://www.chess.com"]

[Event "Titled Tuesday Blitz March 07 Early 2023"]
[White "Logozar, Elijah"]
[Black "Kowalczyk, Pawel"]
[WhiteFideId "30963788"]
[BlackFideId "1130641"]
[WhiteElo "2372"]
[BlackElo "2324"]
[Result "0-1"]
[Round "02"]
[TimeControl "180+2"]
[Date "2023.03.07"]
[WhiteClock "0:02:22"]
[BlackClock "0:02:38"]

1. e4 {[%clk 0:03:00]}  c5 {[%clk 0:03:00]} 2. Nf3 {[%clk 0:03:00]}  e6 {[%clk 0:03:00]} 3. d4 {[%clk 0:03:00]}  cxd4 {[%clk 0:03:01]} 4. Nxd4 {[%clk 0:03:01]}  Qb6 {[%clk 0:03:02]} 5. Nc3 {[%clk 0:03:00]}  Bc5 {[%clk 0:03:01]} 6. Na4 {[%clk 0:02:51]}  Qa5+ {[%clk 0:03:01]} 7. c3 {[%clk 0:02:50]}  Bxd4 {[%clk 0:03:02]} 8. Qxd4 {[%clk 0:02:49]}  Nf6 {[%clk 0:03:02]} 9. e5 {[%clk 0:02:45]}  Nc6 {[%clk 0:03:02]} 10. Qh4 {[%clk 0:02:37]}  Qxe5+ {[%clk 0:02:59]} 11. Be2 {[%clk 0:02:37]}  b5 {[%clk 0:02:51]} 12. f4 {[%clk 0:02:37]}  Qf5 {[%clk 0:02:50]} 13. g4 {[%clk 0:02:37]}  Qd5 {[%clk 0:02:49]} 14. Rf1 {[%clk 0:02:30]}  bxa4 {[%clk 0:02:48]} 15. Be3 {[%clk 0:02:31]}  Rb8 {[%clk 0:02:43]} 16. Rd1 {[%clk 0:02:24]}  Qxa2 {[%clk 0:02:43]} 17. g5 {[%clk 0:02:24]}  Rxb2 {[%clk 0:02:40]} 18. Bd3 {[%clk 0:02:22]}  Nd5 {[%clk 0:02:38]} 19. Bd4 {[%clk 0:02:22]} 0-1


[Site "https://www.chess.com"]

[Event "Titled Tuesday Blitz March 07 Early 2023"]
[White "Kirillov, Dmitry"]
[Black "Matinian, Nikita"]
[WhiteFideId "34180572"]
[BlackFideId "24129100"]
[WhiteElo "2111"]
[BlackElo "2422"]
[Result "0-1"]
[Round "02"]
[TimeControl "180+2"]
[Date "2023.03.07"]
[WhiteClock "0:00:02"]
[BlackClock "0:00:40"]

1. e4 {[%clk 0:03:00]}  c5 {[%clk 0:02:59]} 2. Nf3 {[%clk 0:03:00]}  e6 {[%clk 0:03:00]} 3. d4 {[%clk 0:03:00]}  cxd4 {[%clk 0:03:01]} 4. Nxd4 {[%clk 0:03:01]}  Nc6 {[%clk 0:03:01]} 5. Nc3 {[%clk 0:03:01]}  Qc7 {[%clk 0:03:01]} 6. Be3 {[%clk 0:02:59]}  a6 {[%clk 0:03:00]} 7. Qf3 {[%clk 0:03:00]}  h5 {[%clk 0:02:58]} 8. Qg3 {[%clk 0:02:40]}  d6 {[%clk 0:02:54]} 9. h4 {[%clk 0:02:24]}  Nf6 {[%clk 0:02:53]} 10. O-O-O {[%clk 0:02:22]}  Ng4 {[%clk 0:02:53]} 11. Nxc6 {[%clk 0:01:52]}  Nxe3 {[%clk 0:02:50]} 12. Qxe3 {[%clk 0:01:48]}  Qxc6 {[%clk 0:02:44]} 13. Kb1 {[%clk 0:01:36]}  Be7 {[%clk 0:02:40]} 14. Be2 {[%clk 0:01:34]}  b5 {[%clk 0:02:30]} 15. Rhe1 {[%clk 0:01:19]}  Bb7 {[%clk 0:02:28]} 16. g3 {[%clk 0:01:07]}  b4 {[%clk 0:02:26]} 17. Nd5 {[%clk 0:00:49]}  exd5 {[%clk 0:02:25]} 18. exd5 {[%clk 0:00:50]}  Qc7 {[%clk 0:02:26]} 19. Bf3 {[%clk 0:00:41]}  Kf8 {[%clk 0:02:24]} 20. Rd4 {[%clk 0:00:38]}  a5 {[%clk 0:01:32]} 21. Re4 {[%clk 0:00:30]}  Re8 {[%clk 0:01:33]} 22. Rf4 {[%clk 0:00:27]}  Rh6 {[%clk 0:01:24]} 23. Bg2 {[%clk 0:00:12]}  Qc5 {[%clk 0:01:22]} 24. Qd3 {[%clk 0:00:09]}  Bf6 {[%clk 0:01:15]} 25. Rxe8+ {[%clk 0:00:09]}  Kxe8 {[%clk 0:01:16]} 26. Re4+ {[%clk 0:00:09]}  Kf8 {[%clk 0:01:12]} 27. Qe2 {[%clk 0:00:08]}  Qc8 {[%clk 0:01:09]} 28. Bh3 {[%clk 0:00:08]}  Qd8 {[%clk 0:01:09]} 29. c4 {[%clk 0:00:04]}  bxc3 {[%clk 0:01:08]} 30. bxc3 {[%clk 0:00:04]}  Bxd5 {[%clk 0:01:05]} 31. Rf4 {[%clk 0:00:05]}  Be5 {[%clk 0:01:02]} 32. Ra4 {[%clk 0:00:04]}  Qb6+ {[%clk 0:00:48]} 33. Kc1 {[%clk 0:00:03]}  Qc6 {[%clk 0:00:44]} 34. Ra3 {[%clk 0:00:02]}  Bxc3 {[%clk 0:00:42]} 35. Qc2 {[%clk 0:00:01]}  Bb4 {[%clk 0:00:40]} 36. Qxc6 {[%clk 0:00:02]}  Bxa3+ {[%clk 0:00:40]} 0-1


[Site "https://www.chess.com"]

[Event "Titled Tuesday Blitz March 07 Early 2023"]
[White "Solovchuk, Oleksiy"]
[Black "Melikhov, Evgeny V."]
[WhiteFideId "14115220"]
[BlackFideId "4122046"]
[WhiteElo "2291"]
[BlackElo "2158"]
[Result "1-0"]
[Round "02"]
[TimeControl "180+2"]
[Date "2023.03.07"]
[WhiteClock "0:00:12"]
[BlackClock "0:00:02"]

1. c4 {[%clk 0:02:58]}  e5 {[%clk 0:02:58]} 2. Nc3 {[%clk 0:02:58]}  d6 {[%clk 0:02:59]} 3. g3 {[%clk 0:02:58]}  f5 {[%clk 0:02:59]} 4. d3 {[%clk 0:02:58]}  Nf6 {[%clk 0:02:59]} 5. Bg2 {[%clk 0:02:58]}  Be7 {[%clk 0:02:59]} 6. e4 {[%clk 0:02:55]}  O-O {[%clk 0:02:57]} 7. Nge2 {[%clk 0:02:55]}  c6 {[%clk 0:02:52]} 8. O-O {[%clk 0:02:54]}  a5 {[%clk 0:02:38]} 9. exf5 {[%clk 0:02:09]}  Bxf5 {[%clk 0:02:36]} 10. d4 {[%clk 0:02:10]}  e4 {[%clk 0:02:15]} 11. d5 {[%clk 0:02:04]}  c5 {[%clk 0:02:08]} 12. Qc2 {[%clk 0:02:01]}  Na6 {[%clk 0:01:54]} 13. Nxe4 {[%clk 0:02:00]}  Nb4 {[%clk 0:01:39]} 14. Qb1 {[%clk 0:01:59]}  Qd7 {[%clk 0:01:24]} 15. a3 {[%clk 0:01:57]}  Na6 {[%clk 0:01:23]} 16. N2c3 {[%clk 0:01:54]}  Bh3 {[%clk 0:01:21]} 17. f3 {[%clk 0:01:46]}  Bxg2 {[%clk 0:01:20]} 18. Kxg2 {[%clk 0:01:46]}  Nc7 {[%clk 0:01:16]} 19. Qd3 {[%clk 0:01:41]}  Qf5 {[%clk 0:01:04]} 20. Bd2 {[%clk 0:01:30]}  b5 {[%clk 0:00:54]} 21. Nxf6+ {[%clk 0:01:26]}  Rxf6 {[%clk 0:00:48]} 22. Qxf5 {[%clk 0:01:25]}  Rxf5 {[%clk 0:00:48]} 23. g4 {[%clk 0:01:25]}  Rf7 {[%clk 0:00:33]} 24. cxb5 {[%clk 0:01:24]}  Bf6 {[%clk 0:00:33]} 25. a4 {[%clk 0:01:23]}  Bxc3 {[%clk 0:00:32]} 26. bxc3 {[%clk 0:01:23]}  Nxd5 {[%clk 0:00:32]} 27. Kg3 {[%clk 0:01:13]}  Nb6 {[%clk 0:00:32]} 28. Rfe1 {[%clk 0:01:08]}  Kf8 {[%clk 0:00:27]} 29. Bf4 {[%clk 0:01:06]}  Rd7 {[%clk 0:00:22]} 30. Re6 {[%clk 0:01:04]}  Rad8 {[%clk 0:00:17]} 31. Rd1 {[%clk 0:00:59]}  Nc4 {[%clk 0:00:15]} 32. Bg5 {[%clk 0:00:42]}  Re8 {[%clk 0:00:13]} 33. Rxe8+ {[%clk 0:00:39]}  Kxe8 {[%clk 0:00:14]} 34. Kf4 {[%clk 0:00:36]}  Kf7 {[%clk 0:00:13]} 35. Ke4 {[%clk 0:00:35]}  Nb6 {[%clk 0:00:12]} 36. Bf4 {[%clk 0:00:32]}  d5+ {[%clk 0:00:11]} 37. Ke5 {[%clk 0:00:32]}  Nc4+ {[%clk 0:00:10]} 38. Kf5 {[%clk 0:00:30]}  g6+ {[%clk 0:00:10]} 39. Kg5 {[%clk 0:00:30]}  Nb6 {[%clk 0:00:08]} 40. Ra1 {[%clk 0:00:22]}  d4 {[%clk 0:00:08]} 41. cxd4 {[%clk 0:00:22]}  cxd4 {[%clk 0:00:08]} 42. Kh6 {[%clk 0:00:20]}  Ke6 {[%clk 0:00:07]} 43. Bd2 {[%clk 0:00:17]}  Nc4 {[%clk 0:00:07]} 44. Re1+ {[%clk 0:00:16]}  Kd5 {[%clk 0:00:07]} 45. Bf4 {[%clk 0:00:16]}  d3 {[%clk 0:00:07]} 46. b6 {[%clk 0:00:16]}  Nxb6 {[%clk 0:00:06]} 47. Re5+ {[%clk 0:00:17]}  Kd4 {[%clk 0:00:06]} 48. Rxa5 {[%clk 0:00:15]}  Nc4 {[%clk 0:00:07]} 49. Ra8 {[%clk 0:00:15]}  d2 {[%clk 0:00:07]} 50. Bxd2 {[%clk 0:00:16]}  Nxd2 {[%clk 0:00:07]} 51. a5 {[%clk 0:00:16]}  Nc4 {[%clk 0:00:07]} 52. f4 {[%clk 0:00:16]}  Rd5 {[%clk 0:00:06]} 53. Re8 {[%clk 0:00:17]}  Rxa5 {[%clk 0:00:05]} 54. Kxh7 {[%clk 0:00:18]}  Nd6 {[%clk 0:00:05]} 55. Rd8 {[%clk 0:00:17]}  Kd5 {[%clk 0:00:04]} 56. Kxg6 {[%clk 0:00:17]}  Ke6 {[%clk 0:00:05]} 57. f5+ {[%clk 0:00:17]}  Ke7 {[%clk 0:00:05]} 58. Rb8 {[%clk 0:00:17]}  Ra6 {[%clk 0:00:05]} 59. f6+ {[%clk 0:00:17]}  Kd7 {[%clk 0:00:05]} 60. g5 {[%clk 0:00:17]}  Ne8 {[%clk 0:00:04]} 61. h4 {[%clk 0:00:16]}  Nc7 {[%clk 0:00:04]} 62. Rb1 {[%clk 0:00:15]}  Ra4 {[%clk 0:00:03]} 63. Rd1+ {[%clk 0:00:15]}  Ke8 {[%clk 0:00:03]} 64. Re1+ {[%clk 0:00:16]}  Kf8 {[%clk 0:00:03]} 65. h5 {[%clk 0:00:16]}  Ne8 {[%clk 0:00:04]} 66. Rb1 {[%clk 0:00:16]}  Ra7 {[%clk 0:00:03]} 67. Rb8 {[%clk 0:00:14]}  Rc7 {[%clk 0:00:03]} 68. h6 {[%clk 0:00:13]}  Rb7 {[%clk 0:00:02]} 69. Rxb7 {[%clk 0:00:12]}  Kg8 {[%clk 0:00:02]} 70. Rb8 {[%clk 0:00:12]}  Kf8 {[%clk 0:00:02]} 71. Rc8 {[%clk 0:00:12]} 1-0


[Site "https://www.chess.com"]

[Event "Titled Tuesday Blitz March 07 Early 2023"]
[White "Smith, Garrett L"]
[Black "Skliarov, Viktor"]
[WhiteFideId "2024829"]
[BlackFideId "14106736"]
[WhiteElo "2273"]
[BlackElo "2289"]
[Result "0-1"]
[Round "02"]
[TimeControl "180+2"]
[Date "2023.03.07"]
[WhiteClock "0:00:22"]
[BlackClock "0:00:15"]

1. e4 {[%clk 0:03:00]}  c5 {[%clk 0:02:56]} 2. a3 {[%clk 0:02:59]}  b6 {[%clk 0:02:53]} 3. b4 {[%clk 0:02:59]}  Bb7 {[%clk 0:02:51]} 4. Nc3 {[%clk 0:02:59]}  Nc6 {[%clk 0:02:49]} 5. bxc5 {[%clk 0:02:56]}  bxc5 {[%clk 0:02:49]} 6. Rb1 {[%clk 0:02:55]}  Rb8 {[%clk 0:02:48]} 7. Nf3 {[%clk 0:02:53]}  g6 {[%clk 0:02:47]} 8. Bc4 {[%clk 0:02:49]}  Bg7 {[%clk 0:02:46]} 9. O-O {[%clk 0:02:49]}  Nf6 {[%clk 0:02:40]} 10. Re1 {[%clk 0:02:45]}  O-O {[%clk 0:02:38]} 11. d3 {[%clk 0:02:30]}  Ng4 {[%clk 0:02:28]} 12. Bd2 {[%clk 0:02:22]}  d6 {[%clk 0:02:12]} 13. h3 {[%clk 0:02:08]}  Nge5 {[%clk 0:02:05]} 14. Nxe5 {[%clk 0:02:04]}  Nxe5 {[%clk 0:02:06]} 15. Bd5 {[%clk 0:01:59]}  Bxd5 {[%clk 0:01:42]} 16. Rxb8 {[%clk 0:01:58]}  Qxb8 {[%clk 0:01:41]} 17. Nxd5 {[%clk 0:01:58]}  e6 {[%clk 0:01:39]} 18. Ne3 {[%clk 0:01:48]}  Qb5 {[%clk 0:01:17]} 19. f4 {[%clk 0:01:45]}  Nc6 {[%clk 0:01:16]} 20. Nc4 {[%clk 0:01:46]}  d5 {[%clk 0:01:16]} 21. exd5 {[%clk 0:01:44]}  exd5 {[%clk 0:01:17]} 22. Ne3 {[%clk 0:01:33]}  Rd8 {[%clk 0:01:11]} 23. f5 {[%clk 0:01:25]}  c4 {[%clk 0:01:05]} 24. Rf1 {[%clk 0:01:04]}  cxd3 {[%clk 0:01:01]} 25. f6 {[%clk 0:01:05]}  Bf8 {[%clk 0:01:00]} 26. cxd3 {[%clk 0:01:00]}  Qxd3 {[%clk 0:01:00]} 27. Ng4 {[%clk 0:00:58]}  Nd4 {[%clk 0:00:39]} 28. Bh6 {[%clk 0:00:34]}  Ne2+ {[%clk 0:00:18]} 29. Kh2 {[%clk 0:00:33]}  Bd6+ {[%clk 0:00:16]} 30. Kh1 {[%clk 0:00:23]}  Ng3+ {[%clk 0:00:16]} 31. Kg1 {[%clk 0:00:23]}  Qxf1+ {[%clk 0:00:16]} 32. Qxf1 {[%clk 0:00:22]}  Nxf1 {[%clk 0:00:15]} 0-1


[Site "https://www.chess.com"]

[Event "Titled Tuesday Blitz March 07 Early 2023"]
[White "Chabris, Christopher"]
[Black "Starozhilov, Leonid"]
[WhiteFideId "2005263"]
[BlackFideId "14106752"]
[WhiteElo "2224"]
[BlackElo "2402"]
[Result "0-1"]
[Round "02"]
[TimeControl "180+2"]
[Date "2023.03.07"]
[WhiteClock "0:00:01"]
[BlackClock "0:01:11"]

1. e4 {[%clk 0:02:59]}  g6 {[%clk 0:02:55]} 2. d4 {[%clk 0:02:58]}  Bg7 {[%clk 0:02:55]} 3. Nc3 {[%clk 0:02:59]}  d6 {[%clk 0:02:55]} 4. Be3 {[%clk 0:02:58]}  a6 {[%clk 0:02:55]} 5. a4 {[%clk 0:02:57]}  Nc6 {[%clk 0:02:55]} 6. h4 {[%clk 0:02:47]}  h5 {[%clk 0:02:51]} 7. Nh3 {[%clk 0:02:46]}  Bxh3 {[%clk 0:02:51]} 8. Rxh3 {[%clk 0:02:46]}  Nf6 {[%clk 0:02:52]} 9. f3 {[%clk 0:02:43]}  e5 {[%clk 0:02:43]} 10. d5 {[%clk 0:02:39]}  Nd4 {[%clk 0:02:43]} 11. Ne2 {[%clk 0:02:07]}  Nxe2 {[%clk 0:02:35]} 12. Bxe2 {[%clk 0:02:05]}  c6 {[%clk 0:02:18]} 13. c4 {[%clk 0:01:53]}  c5 {[%clk 0:02:16]} 14. a5 {[%clk 0:01:47]}  Rb8 {[%clk 0:02:15]} 15. Qd3 {[%clk 0:01:20]}  b6 {[%clk 0:02:04]} 16. b4 {[%clk 0:01:04]}  cxb4 {[%clk 0:01:13]} 17. axb6 {[%clk 0:00:47]}  Rxb6 {[%clk 0:01:14]} 18. c5 {[%clk 0:00:47]}  dxc5 {[%clk 0:01:14]} 19. Bxc5 {[%clk 0:00:47]}  Rb5 {[%clk 0:01:15]} 20. Qxb5+ {[%clk 0:00:28]}  axb5 {[%clk 0:01:15]} 21. Bxb5+ {[%clk 0:00:28]}  Nd7 {[%clk 0:01:15]} 22. Ra7 {[%clk 0:00:09]}  Bf8 {[%clk 0:01:15]} 23. Bxf8 {[%clk 0:00:06]}  Kxf8 {[%clk 0:01:13]} 24. Rxd7 {[%clk 0:00:03]}  Qb6 {[%clk 0:01:13]} 25. Bc6 {[%clk 0:00:02]}  Qe3+ {[%clk 0:01:11]} 26. Kf1 {[%clk 0:00:01]}  b3 {[%clk 0:01:11]} 0-1


[Site "https://www.chess.com"]

[Event "Titled Tuesday Blitz March 07 Early 2023"]
[White "Khripachenko, Alexander"]
[Black "Kho, Darrell"]
[WhiteFideId "54184975"]
[BlackFideId "1019317"]
[WhiteElo "2384"]
[BlackElo "2172"]
[Result "1-0"]
[Round "02"]
[TimeControl "180+2"]
[Date "2023.03.07"]
[WhiteClock "0:01:37"]
[BlackClock "0:00:44"]

1. d4 {[%clk 0:02:58]}  d5 {[%clk 0:02:59]} 2. c4 {[%clk 0:02:58]}  dxc4 {[%clk 0:02:59]} 3. e4 {[%clk 0:02:56]}  b5 {[%clk 0:02:59]} 4. a4 {[%clk 0:02:54]}  c6 {[%clk 0:02:59]} 5. axb5 {[%clk 0:02:52]}  cxb5 {[%clk 0:02:59]} 6. b3 {[%clk 0:02:52]}  e5 {[%clk 0:02:46]} 7. bxc4 {[%clk 0:02:40]}  bxc4 {[%clk 0:02:20]} 8. Bxc4 {[%clk 0:02:39]}  Bb4+ {[%clk 0:02:20]} 9. Kf1 {[%clk 0:02:34]}  Qxd4 {[%clk 0:02:01]} 10. Qxd4 {[%clk 0:02:31]}  exd4 {[%clk 0:02:00]} 11. Bd5 {[%clk 0:02:31]}  a5 {[%clk 0:01:33]} 12. Bxa8 {[%clk 0:02:17]}  Ba6+ {[%clk 0:01:33]} 13. Ne2 {[%clk 0:02:17]}  d3 {[%clk 0:01:34]} 14. Bd2 {[%clk 0:02:12]}  dxe2+ {[%clk 0:01:28]} 15. Ke1 {[%clk 0:02:11]}  Nf6 {[%clk 0:01:27]} 16. Nc3 {[%clk 0:01:51]}  O-O {[%clk 0:01:10]} 17. Nxe2 {[%clk 0:01:48]}  Bxd2+ {[%clk 0:01:02]} 18. Kxd2 {[%clk 0:01:48]}  Nxe4+ {[%clk 0:01:02]} 19. Bxe4 {[%clk 0:01:48]}  Bxe2 {[%clk 0:00:43]} 20. Kxe2 {[%clk 0:01:46]}  Re8 {[%clk 0:00:44]} 21. Kd3 {[%clk 0:01:37]} 1-0


[Site "https://www.chess.com"]

[Event "Titled Tuesday Blitz March 07 Early 2023"]
[White "Kozak, Antoni"]
[Black "Michalski, Olaf"]
[WhiteFideId "21832030"]
[BlackFideId "1106740"]
[WhiteElo "2470"]
[BlackElo "2173"]
[Result "1-0"]
[Round "02"]
[TimeControl "180+2"]
[Date "2023.03.07"]
[WhiteClock "0:02:31"]
[BlackClock "0:00:15"]

1. e4 {[%clk 0:03:00]}  c5 {[%clk 0:02:56]} 2. Nc3 {[%clk 0:02:59]}  a6 {[%clk 0:02:54]} 3. Nf3 {[%clk 0:02:57]}  b5 {[%clk 0:02:54]} 4. g3 {[%clk 0:02:57]}  Bb7 {[%clk 0:02:53]} 5. d3 {[%clk 0:02:57]}  e6 {[%clk 0:02:52]} 6. Bg2 {[%clk 0:02:57]}  g6 {[%clk 0:02:48]} 7. Be3 {[%clk 0:02:56]}  Qc7 {[%clk 0:02:44]} 8. O-O {[%clk 0:02:53]}  Bg7 {[%clk 0:02:41]} 9. d4 {[%clk 0:02:53]}  b4 {[%clk 0:01:57]} 10. Na4 {[%clk 0:02:51]}  Bxe4 {[%clk 0:01:41]} 11. dxc5 {[%clk 0:02:47]}  Nc6 {[%clk 0:01:30]} 12. Nb6 {[%clk 0:02:43]}  Rd8 {[%clk 0:01:25]} 13. Nc4 {[%clk 0:02:42]}  Bd5 {[%clk 0:00:31]} 14. Nd6+ {[%clk 0:02:41]}  Ke7 {[%clk 0:00:23]} 15. Ng5 {[%clk 0:02:36]}  Bxg2 {[%clk 0:00:19]} 16. Kxg2 {[%clk 0:02:37]}  f6 {[%clk 0:00:17]} 17. Ngf7 {[%clk 0:02:36]}  Nh6 {[%clk 0:00:16]} 18. Bxh6 {[%clk 0:02:31]}  Bxh6 {[%clk 0:00:15]} 19. Nxh6 {[%clk 0:02:31]} 1-0


[Site "https://www.chess.com"]

[Event "Titled Tuesday Blitz March 07 Early 2023"]
[White "Prokofiev, Valentyn"]
[Black "Gurevich, Ilya"]
[WhiteFideId "14160161"]
[BlackFideId "2000628"]
[WhiteElo "2260"]
[BlackElo "2140"]
[Result "1-0"]
[Round "02"]
[TimeControl "180+2"]
[Date "2023.03.07"]
[WhiteClock "0:01:21"]
[BlackClock "0:00:02"]

1. c4 {[%clk 0:03:00]}  Nf6 {[%clk 0:03:00]} 2. Nc3 {[%clk 0:03:00]}  d6 {[%clk 0:03:00]} 3. e4 {[%clk 0:02:58]}  g6 {[%clk 0:03:00]} 4. d4 {[%clk 0:02:58]}  Bg7 {[%clk 0:03:01]} 5. Nf3 {[%clk 0:02:59]}  O-O {[%clk 0:03:01]} 6. Be2 {[%clk 0:02:59]}  c5 {[%clk 0:03:00]} 7. O-O {[%clk 0:02:56]}  cxd4 {[%clk 0:03:00]} 8. Nxd4 {[%clk 0:02:56]}  Nc6 {[%clk 0:03:01]} 9. Be3 {[%clk 0:02:56]}  Bd7 {[%clk 0:03:01]} 10. h3 {[%clk 0:02:56]}  Nxd4 {[%clk 0:03:01]} 11. Bxd4 {[%clk 0:02:57]}  Bc6 {[%clk 0:03:02]} 12. Qc2 {[%clk 0:02:57]}  a5 {[%clk 0:02:55]} 13. Rad1 {[%clk 0:02:57]}  Nd7 {[%clk 0:02:43]} 14. Bxg7 {[%clk 0:02:57]}  Kxg7 {[%clk 0:02:44]} 15. Bg4 {[%clk 0:02:57]}  Ne5 {[%clk 0:02:40]} 16. c5 {[%clk 0:02:57]}  Nxg4 {[%clk 0:02:12]} 17. hxg4 {[%clk 0:02:56]}  Qc8 {[%clk 0:02:07]} 18. cxd6 {[%clk 0:02:56]}  Qxg4 {[%clk 0:02:00]} 19. dxe7 {[%clk 0:02:56]}  Rfe8 {[%clk 0:02:00]} 20. Nd5 {[%clk 0:02:56]}  Bxd5 {[%clk 0:01:52]} 21. Qc3+ {[%clk 0:02:56]}  Kg8 {[%clk 0:01:46]} 22. exd5 {[%clk 0:02:55]}  Rxe7 {[%clk 0:01:45]} 23. d6 {[%clk 0:02:45]}  Rd7 {[%clk 0:01:44]} 24. Rfe1 {[%clk 0:02:44]}  Rad8 {[%clk 0:01:12]} 25. Rd4 {[%clk 0:02:17]}  Qf5 {[%clk 0:00:50]} 26. Rde4 {[%clk 0:01:52]}  Rf8 {[%clk 0:00:32]} 27. Re8 {[%clk 0:01:48]}  Rd8 {[%clk 0:00:30]} 28. Rxf8+ {[%clk 0:01:45]}  Rxf8 {[%clk 0:00:31]} 29. Qc7 {[%clk 0:01:44]}  Qd3 {[%clk 0:00:05]} 30. Qe7 {[%clk 0:01:23]}  h5 {[%clk 0:00:04]} 31. d7 {[%clk 0:01:23]}  h4 {[%clk 0:00:03]} 32. Qxf8+ {[%clk 0:01:19]}  Kxf8 {[%clk 0:00:01]} 33. Re8+ {[%clk 0:01:20]}  Kg7 {[%clk 0:00:01]} 34. d8=Q {[%clk 0:01:21]}  Qb1+ {[%clk 0:00:02]} 35. Kh2 {[%clk 0:01:21]} 1-0


[Site "https://www.chess.com"]